[Event "Early-Titled-Tuesday-Blitz-October-10-2023"]
[Site "Chess.com"]
[Date "2023.10.10"]
[Round "11"]
[White "invisible_s0ul"]
[Black "JiiHart"]
[Result "0-1"]
[WhiteElo "2289"]
[BlackElo "2202"]
[TimeControl "180+1"]
[EndTime "10:05:18 PDT"]
[Termination "JiiHart won on time"]

1. d4 {[%clk 0:03:00.9]} 1... d5 {[%clk 0:02:59.5]} 2. f4 {[%clk 0:02:55.3]}
2... c5 {[%clk 0:02:58.4]} 3. e3 {[%clk 0:02:52.2]} 3... Nc6 {[%clk 0:02:56.5]}
4. Nf3 {[%clk 0:02:49.8]} 4... Bg4 {[%clk 0:02:54.8]} 5. c3 {[%clk 0:02:48]}
5... e6 {[%clk 0:02:53.6]} 6. Be2 {[%clk 0:02:47.5]} 6... Nf6 {[%clk 0:02:51.2]}
7. Nbd2 {[%clk 0:02:42.9]} 7... Bd6 {[%clk 0:02:48.5]} 8. h3 {[%clk 0:02:40.3]}
8... Bxf3 {[%clk 0:02:40.2]} 9. Nxf3 {[%clk 0:02:38.9]} 9... Qc7 {[%clk
0:02:33.5]} 10. Bd2 {[%clk 0:02:36.5]} 10... Ne4 {[%clk 0:02:27.4]} 11. Ne5
{[%clk 0:02:28.8]} 11... Ng3 {[%clk 0:02:15.8]} 12. Rg1 {[%clk 0:02:28.3]} 12...
O-O {[%clk 0:01:59]} 13. Bd3 {[%clk 0:02:17.5]} 13... f6 {[%clk 0:01:43.9]} 14.
Ng4 {[%clk 0:02:09.7]} 14... cxd4 {[%clk 0:01:38.7]} 15. cxd4 {[%clk 0:02:10.6]}
15... Nb4 {[%clk 0:01:32.5]} 16. Bxb4 {[%clk 0:01:57.6]} 16... Bxb4+ {[%clk
0:01:31.5]} 17. Kf2 {[%clk 0:01:58.3]} 17... Ne4+ {[%clk 0:01:30.5]} 18. Bxe4
{[%clk 0:01:58.5]} 18... dxe4 {[%clk 0:01:30.7]} 19. Qb3 {[%clk 0:01:59.2]}
19... Qe7 {[%clk 0:01:23]} 20. f5 {[%clk 0:01:33.1]} 20... Rac8 {[%clk
0:01:00.3]} 21. Rac1 {[%clk 0:01:27]} 21... Rfe8 {[%clk 0:00:51.2]} 22. Qxe6+
{[%clk 0:00:57.8]} 22... Qxe6 {[%clk 0:00:48.9]} 23. fxe6 {[%clk 0:00:58.7]}
23... h5 {[%clk 0:00:47.1]} 24. Nh2 {[%clk 0:00:51.7]} 24... Rxc1 {[%clk
0:00:46.8]} 25. Rxc1 {[%clk 0:00:52.6]} 25... Rxe6 {[%clk 0:00:47.2]} 26. Nf1
{[%clk 0:00:35.6]} 26... h4 {[%clk 0:00:45]} 27. a3 {[%clk 0:00:34.3]} 27... Bd6
{[%clk 0:00:42.8]} 28. Rc8+ {[%clk 0:00:32.4]} 28... Kf7 {[%clk 0:00:42.3]} 29.
Rh8 {[%clk 0:00:32.2]} 29... Be7 {[%clk 0:00:30.7]} 30. Rxh4 {[%clk 0:00:27.5]}
30... f5 {[%clk 0:00:30.8]} 31. Rh8 {[%clk 0:00:26.2]} 31... Rb6 {[%clk
0:00:28.8]} 32. b4 {[%clk 0:00:21.6]} 32... Ra6 {[%clk 0:00:22.9]} 33. Rb8
{[%clk 0:00:20.6]} 33... b6 {[%clk 0:00:22.9]} 34. Ng3 {[%clk 0:00:12.4]} 34...
g6 {[%clk 0:00:22]} 35. Ne2 {[%clk 0:00:11.9]} 35... Rxa3 {[%clk 0:00:21.8]} 36.
b5 {[%clk 0:00:08.2]} 36... Rb3 {[%clk 0:00:20.9]} 37. Rb7 {[%clk 0:00:08.8]}
37... Rxb5 {[%clk 0:00:20.1]} 38. Rxa7 {[%clk 0:00:09.5]} 38... Rb2 {[%clk
0:00:20.4]} 39. g4 {[%clk 0:00:07.3]} 39... b5 {[%clk 0:00:20.3]} 40. Rb7 {[%clk
0:00:05.7]} 40... Ke6 {[%clk 0:00:18.1]} 41. Kf1 {[%clk 0:00:05.1]} 41... fxg4
{[%clk 0:00:17.1]} 42. hxg4 {[%clk 0:00:04.4]} 42... Bh4 {[%clk 0:00:15.9]} 43.
Nf4+ {[%clk 0:00:04.2]} 43... Kd6 {[%clk 0:00:13.3]} 44. Nxg6 {[%clk 0:00:01.9]}
44... Bg3 {[%clk 0:00:13.5]} 45. Nf4 {[%clk 0:00:02.3]} 45... b4 {[%clk
0:00:12.7]} 46. Ne2 {[%clk 0:00:01.8]} 46... Bh4 {[%clk 0:00:11.4]} 47. Nf4
{[%clk 0:00:01.8]} 47... b3 {[%clk 0:00:11.3]} 48. g5 {[%clk 0:00:01.7]} 48...
Rb1+ {[%clk 0:00:11.5]} 49. Kg2 {[%clk 0:00:01.6]} 49... b2 {[%clk 0:00:12]} 0-1

[Event "Early-Titled-Tuesday-Blitz-October-10-2023"]
[Site "Chess.com"]
[Date "2023.10.10"]
[Round "11"]
[White "hakanazeri2"]
[Black "Tsyhanchuk_Stanislav"]
[Result "1-0"]
[WhiteElo "2603"]
[BlackElo "2457"]
[TimeControl "180+1"]
[EndTime "10:05:23 PDT"]
[Termination "hakanazeri2 won by checkmate"]

1. Nf3 {[%clk 0:02:59.8]} 1... Nf6 {[%clk 0:02:59.7]} 2. c4 {[%clk 0:03:00.1]}
2... e6 {[%clk 0:02:59.1]} 3. d4 {[%clk 0:03:00.3]} 3... d5 {[%clk 0:02:59.2]}
4. g3 {[%clk 0:03:00.5]} 4... dxc4 {[%clk 0:02:59.4]} 5. Bg2 {[%clk 0:03:01.4]}
5... Nc6 {[%clk 0:02:59.8]} 6. O-O {[%clk 0:02:57.7]} 6... Rb8 {[%clk
0:02:59.5]} 7. a4 {[%clk 0:02:53.9]} 7... a6 {[%clk 0:02:58.3]} 8. Bg5 {[%clk
0:02:45.1]} 8... Be7 {[%clk 0:02:53.7]} 9. Nc3 {[%clk 0:02:44.5]} 9... O-O
{[%clk 0:02:40.2]} 10. e3 {[%clk 0:02:40.1]} 10... b5 {[%clk 0:02:39.2]} 11.
Bxf6 {[%clk 0:02:39.6]} 11... Bxf6 {[%clk 0:02:37]} 12. axb5 {[%clk 0:02:39.3]}
12... axb5 {[%clk 0:02:37]} 13. Nd2 {[%clk 0:02:39.5]} 13... Nb4 {[%clk
0:02:33.2]} 14. Nde4 {[%clk 0:02:34.6]} 14... Be7 {[%clk 0:02:21.3]} 15. b3
{[%clk 0:02:33.5]} 15... f5 {[%clk 0:02:12.7]} 16. Nd2 {[%clk 0:02:26.8]} 16...
cxb3 {[%clk 0:01:59.3]} 17. Nxb3 {[%clk 0:02:23.4]} 17... Bb7 {[%clk 0:01:57.8]}
18. Bxb7 {[%clk 0:02:18.5]} 18... Rxb7 {[%clk 0:01:58.7]} 19. Qf3 {[%clk
0:02:18.8]} 19... c6 {[%clk 0:01:56.1]} 20. Rfc1 {[%clk 0:02:17.5]} 20... Nd5
{[%clk 0:01:50.3]} 21. Nxd5 {[%clk 0:02:10.1]} 21... cxd5 {[%clk 0:01:51.2]} 22.
Rc6 {[%clk 0:02:07.7]} 22... Rb6 {[%clk 0:01:30.5]} 23. Rc2 {[%clk 0:02:05.6]}
23... b4 {[%clk 0:01:24.5]} 24. Ra7 {[%clk 0:02:04.8]} 24... Bd6 {[%clk
0:01:20.9]} 25. h4 {[%clk 0:01:45.8]} 25... Qb8 {[%clk 0:01:16.8]} 26. Rd7
{[%clk 0:01:39.1]} 26... Rb7 {[%clk 0:01:10.6]} 27. Rxb7 {[%clk 0:01:34]} 27...
Qxb7 {[%clk 0:01:11.5]} 28. Qd1 {[%clk 0:01:34]} 28... Ra8 {[%clk 0:01:02.6]}
29. Qb1 {[%clk 0:01:04.3]} 29... Qb8 {[%clk 0:00:57.1]} 30. Kg2 {[%clk 0:01:02]}
30... e5 {[%clk 0:00:40.5]} 31. dxe5 {[%clk 0:00:57.8]} 31... Bxe5 {[%clk
0:00:41.4]} 32. Qd1 {[%clk 0:00:57.9]} 32... Qb7 {[%clk 0:00:21.3]} 33. Nc5
{[%clk 0:00:57.4]} 33... Qf7 {[%clk 0:00:20.7]} 34. Nb3 {[%clk 0:00:51.3]} 34...
Bc3 {[%clk 0:00:19.6]} 35. Qd3 {[%clk 0:00:50]} 35... Qb7 {[%clk 0:00:16.4]} 36.
Qxf5 {[%clk 0:00:34.1]} 36... d4+ {[%clk 0:00:10.7]} 37. Kh2 {[%clk 0:00:33.4]}
37... Rf8 {[%clk 0:00:07.2]} 38. Qe6+ {[%clk 0:00:31.2]} 38... Kh8 {[%clk
0:00:07.6]} 39. Qd6 {[%clk 0:00:26.3]} 39... Qf3 {[%clk 0:00:06.2]} 40. Nxd4
{[%clk 0:00:24.8]} 40... Bxd4 {[%clk 0:00:05.5]} 41. Qxd4 {[%clk 0:00:23.7]}
41... b3 {[%clk 0:00:05.9]} 42. Rb2 {[%clk 0:00:22.8]} 42... Qf5 {[%clk
0:00:03.4]} 43. e4 {[%clk 0:00:17.8]} 43... Qf7 {[%clk 0:00:02.4]} 44. e5 {[%clk
0:00:16.1]} 44... Qf3 {[%clk 0:00:02]} 45. e6 {[%clk 0:00:15.2]} 45... Re8
{[%clk 0:00:01.7]} 46. Qd7 {[%clk 0:00:14.5]} 46... Qf8 {[%clk 0:00:01.4]} 47.
f4 {[%clk 0:00:12.1]} 47... Rd8 {[%clk 0:00:01.1]} 48. e7 {[%clk 0:00:11.6]}
48... Rxd7 {[%clk 0:00:01.6]} 49. exf8=Q# {[%clk 0:00:11.3]} 1-0

[Event "Early-Titled-Tuesday-Blitz-October-10-2023"]
[Site "Chess.com"]
[Date "2023.10.10"]
[Round "11"]
[White "MatthewG-p4p"]
[Black "Aswathchess"]
[Result "1-0"]
[WhiteElo "2809"]
[BlackElo "2629"]
[TimeControl "180+1"]
[EndTime "10:05:37 PDT"]
[Termination "MatthewG-p4p won by resignation"]

1. e4 {[%clk 0:02:56]} 1... g6 {[%clk 0:02:59.3]} 2. d4 {[%clk 0:02:53.4]} 2...
Bg7 {[%clk 0:02:59.6]} 3. Nc3 {[%clk 0:02:53.9]} 3... a6 {[%clk 0:02:58.9]} 4.
Nf3 {[%clk 0:02:52.4]} 4... b5 {[%clk 0:02:58.6]} 5. Bd3 {[%clk 0:02:52.2]} 5...
Bb7 {[%clk 0:02:58.3]} 6. Be3 {[%clk 0:02:52.6]} 6... d6 {[%clk 0:02:57.5]} 7.
O-O {[%clk 0:02:51.9]} 7... Nd7 {[%clk 0:02:57.7]} 8. a4 {[%clk 0:02:52.6]} 8...
b4 {[%clk 0:02:57.3]} 9. Ne2 {[%clk 0:02:53.1]} 9... Ngf6 {[%clk 0:02:57]} 10.
Ng3 {[%clk 0:02:53.6]} 10... O-O {[%clk 0:02:55.5]} 11. a5 {[%clk 0:02:53]}
11... e5 {[%clk 0:02:49.2]} 12. dxe5 {[%clk 0:02:20.2]} 12... dxe5 {[%clk
0:02:48.6]} 13. Qe2 {[%clk 0:02:17.4]} 13... Qe7 {[%clk 0:02:47.4]} 14. Nd2
{[%clk 0:02:15.1]} 14... Nc5 {[%clk 0:02:46.1]} 15. Rac1 {[%clk 0:02:09.1]}
15... Rfd8 {[%clk 0:02:44.1]} 16. f3 {[%clk 0:02:06.8]} 16... Bc6 {[%clk
0:02:34.7]} 17. Nc4 {[%clk 0:02:00.4]} 17... Bb5 {[%clk 0:02:34.1]} 18. b3
{[%clk 0:01:58.3]} 18... Nfd7 {[%clk 0:02:24]} 19. Qf2 {[%clk 0:01:54.1]} 19...
Nxd3 {[%clk 0:02:15.2]} 20. cxd3 {[%clk 0:01:55]} 20... Bf8 {[%clk 0:02:15.4]}
21. Nb2 {[%clk 0:01:48.2]} 21... Qe6 {[%clk 0:02:05.6]} 22. Qc2 {[%clk
0:01:46.8]} 22... Rac8 {[%clk 0:02:04.1]} 23. Rfd1 {[%clk 0:01:45.6]} 23... h5
{[%clk 0:02:02.2]} 24. Nf1 {[%clk 0:01:38]} 24... c5 {[%clk 0:01:57.4]} 25. Bf2
{[%clk 0:01:32]} 25... Nb8 {[%clk 0:01:57.2]} 26. Ne3 {[%clk 0:01:29.9]} 26...
Nc6 {[%clk 0:01:55.1]} 27. Nd5 {[%clk 0:01:30.2]} 27... Nxa5 {[%clk 0:01:53.1]}
28. Bh4 {[%clk 0:01:30.3]} 28... Rd6 {[%clk 0:01:50.7]} 29. Nc4 {[%clk
0:01:30.5]} 29... Bxc4 {[%clk 0:01:46.1]} 30. dxc4 {[%clk 0:01:27.9]} 30... Nc6
{[%clk 0:01:46.1]} 31. Bf2 {[%clk 0:01:24.9]} 31... Bh6 {[%clk 0:01:44.1]} 32.
Ra1 {[%clk 0:01:24.6]} 32... Nd4 {[%clk 0:01:43.3]} 33. Bxd4 {[%clk 0:01:23.3]}
33... exd4 {[%clk 0:01:34]} 34. Qd3 {[%clk 0:01:22.2]} 34... h4 {[%clk
0:01:28.2]} 35. Re1 {[%clk 0:01:20.3]} 35... Qe5 {[%clk 0:01:26.2]} 36. Ra5
{[%clk 0:01:13.6]} 36... Kg7 {[%clk 0:01:14.8]} 37. Rf1 {[%clk 0:01:05]} 37...
Bf4 {[%clk 0:01:11.3]} 38. Kh1 {[%clk 0:00:42.9]} 38... Re8 {[%clk 0:01:04.7]}
39. Rxc5 {[%clk 0:00:40.9]} 39... g5 {[%clk 0:00:53.7]} 40. h3 {[%clk
0:00:40.1]} 40... f5 {[%clk 0:00:48.6]} 41. Nc7 {[%clk 0:00:26.4]} 41... Qxc5
{[%clk 0:00:33.2]} 42. Nxe8+ {[%clk 0:00:26.4]} 42... Kf7 {[%clk 0:00:30.2]} 43.
Nxd6+ {[%clk 0:00:26.3]} 43... Qxd6 {[%clk 0:00:31.1]} 44. exf5 {[%clk
0:00:24.9]} 44... Qe5 {[%clk 0:00:20.7]} 45. Ra1 {[%clk 0:00:17.9]} 45... a5
{[%clk 0:00:20.5]} 46. Rd1 {[%clk 0:00:09.1]} 46... Be3 {[%clk 0:00:20]} 47. Qe4
{[%clk 0:00:07]} 47... Kf6 {[%clk 0:00:20.2]} 48. c5 {[%clk 0:00:04.6]} 48...
Qxc5 {[%clk 0:00:16.3]} 49. Qe6+ {[%clk 0:00:04.6]} 49... Kg7 {[%clk 0:00:16.6]}
50. Qg6+ {[%clk 0:00:04.9]} 50... Kf8 {[%clk 0:00:16.7]} 51. f6 {[%clk
0:00:05.8]} 51... Qc7 {[%clk 0:00:15]} 52. Qh6+ {[%clk 0:00:06.1]} 52... Ke8
{[%clk 0:00:14.6]} 53. Qh8+ {[%clk 0:00:06.4]} 53... Kd7 {[%clk 0:00:14.4]} 54.
Qg7+ {[%clk 0:00:06.9]} 54... Kc8 {[%clk 0:00:11.8]} 55. Qxc7+ {[%clk
0:00:07.8]} 55... Kxc7 {[%clk 0:00:12.7]} 56. f7 {[%clk 0:00:08.7]} 1-0

[Event "Early-Titled-Tuesday-Blitz-October-10-2023"]
[Site "Chess.com"]
[Date "2023.10.10"]
[Round "11"]
[White "howitzer14"]
[Black "dosto07"]
[Result "0-1"]
[WhiteElo "2991"]
[BlackElo "2530"]
[TimeControl "180+1"]
[EndTime "10:05:39 PDT"]
[Termination "dosto07 won by resignation"]

1. d4 {[%clk 0:02:43.4]} 1... d5 {[%clk 0:02:59]} 2. Bf4 {[%clk 0:02:36.9]} 2...
Nf6 {[%clk 0:02:58.8]} 3. e3 {[%clk 0:02:37.1]} 3... c5 {[%clk 0:02:58.9]} 4.
Nd2 {[%clk 0:02:36.7]} 4... Nc6 {[%clk 0:02:58.7]} 5. Ngf3 {[%clk 0:02:36.4]}
5... cxd4 {[%clk 0:02:58.7]} 6. exd4 {[%clk 0:02:36.2]} 6... Qb6 {[%clk
0:02:59.2]} 7. Nb3 {[%clk 0:02:36.7]} 7... Bf5 {[%clk 0:02:58.8]} 8. Bd3 {[%clk
0:02:23]} 8... Bxd3 {[%clk 0:02:57.2]} 9. Qxd3 {[%clk 0:02:23.9]} 9... Rc8
{[%clk 0:02:54.6]} 10. c3 {[%clk 0:02:23.2]} 10... e6 {[%clk 0:02:54.7]} 11. O-O
{[%clk 0:02:22.7]} 11... Be7 {[%clk 0:02:54.9]} 12. Rfe1 {[%clk 0:02:23.1]}
12... O-O {[%clk 0:02:47.4]} 13. Re2 {[%clk 0:02:20]} 13... Ne4 {[%clk
0:02:45.7]} 14. Rae1 {[%clk 0:02:12.9]} 14... a5 {[%clk 0:02:22.5]} 15. h4
{[%clk 0:02:07.1]} 15... h6 {[%clk 0:01:56.3]} 16. g3 {[%clk 0:02:03.5]} 16...
Rfd8 {[%clk 0:01:52.6]} 17. Kg2 {[%clk 0:02:02.9]} 17... Bd6 {[%clk 0:01:51.3]}
18. Bc1 {[%clk 0:01:40]} 18... a4 {[%clk 0:01:50.8]} 19. Nbd2 {[%clk 0:01:40.5]}
19... Nxd2 {[%clk 0:01:47.3]} 20. Bxd2 {[%clk 0:01:32.7]} 20... Qa6 {[%clk
0:01:41.4]} 21. Qb1 {[%clk 0:01:26.3]} 21... Na5 {[%clk 0:01:36.9]} 22. a3
{[%clk 0:01:24.3]} 22... Nc4 {[%clk 0:01:36]} 23. Bc1 {[%clk 0:01:25]} 23... Qb6
{[%clk 0:01:23.7]} 24. Qd3 {[%clk 0:01:23.8]} 24... Qb5 {[%clk 0:01:20.1]} 25.
Rd1 {[%clk 0:01:15.2]} 25... Qb3 {[%clk 0:01:11.4]} 26. h5 {[%clk 0:01:11.5]}
26... Re8 {[%clk 0:01:06.3]} 27. g4 {[%clk 0:01:05.1]} 27... Rcd8 {[%clk
0:01:00.3]} 28. g5 {[%clk 0:01:04.9]} 28... hxg5 {[%clk 0:00:57.2]} 29. Nxg5
{[%clk 0:01:02.7]} 29... f5 {[%clk 0:00:46.9]} 30. Nxe6 {[%clk 0:00:49.5]} 30...
Rd7 {[%clk 0:00:46.7]} 31. Rde1 {[%clk 0:00:43.5]} 31... Rde7 {[%clk 0:00:46.1]}
32. Qxf5 {[%clk 0:00:43.2]} 32... Qb6 {[%clk 0:00:41.9]} 33. Qxd5 {[%clk
0:00:41.7]} 33... Qc6 {[%clk 0:00:40]} 34. Qxc6 {[%clk 0:00:40.3]} 34... bxc6
{[%clk 0:00:40.2]} 35. f4 {[%clk 0:00:40.9]} 35... Rb8 {[%clk 0:00:37.6]} 36.
Ng5 {[%clk 0:00:37.6]} 36... Rxe2+ {[%clk 0:00:36.5]} 37. Rxe2 {[%clk
0:00:38.5]} 37... Rf8 {[%clk 0:00:30.6]} 38. Kf3 {[%clk 0:00:38.2]} 38... Nb6
{[%clk 0:00:28.7]} 39. Kg4 {[%clk 0:00:34.7]} 39... Nd5 {[%clk 0:00:28.4]} 40.
Ne6 {[%clk 0:00:30.3]} 40... Rb8 {[%clk 0:00:23.2]} 41. f5 {[%clk 0:00:27.5]}
41... Nf6+ {[%clk 0:00:23.1]} 42. Kh4 {[%clk 0:00:25.6]} 42... Rb5 {[%clk
0:00:22.7]} 43. Rg2 {[%clk 0:00:18.2]} 43... Rxf5 {[%clk 0:00:17.6]} 44. Nxg7
{[%clk 0:00:18.6]} 44... Rf1 {[%clk 0:00:12.9]} 45. Ne8+ {[%clk 0:00:18.6]}
45... Kf8 {[%clk 0:00:11.7]} 46. Nxd6 {[%clk 0:00:14.4]} 46... Rxc1 {[%clk
0:00:11.6]} 47. Rf2 {[%clk 0:00:14.4]} 47... Ke7 {[%clk 0:00:11.2]} 48. Nf5+
{[%clk 0:00:15.2]} 48... Ke6 {[%clk 0:00:10.9]} 49. h6 {[%clk 0:00:13.2]} 49...
Rh1+ {[%clk 0:00:09.8]} 50. Kg3 {[%clk 0:00:12.5]} 50... Ne4+ {[%clk 0:00:09.7]}
51. Kg2 {[%clk 0:00:12.6]} 51... Nxf2 {[%clk 0:00:10.1]} 52. Ng7+ {[%clk
0:00:13.1]} 52... Kf7 {[%clk 0:00:09.2]} 53. Kxf2 {[%clk 0:00:13.6]} 53... Rxh6
{[%clk 0:00:09.2]} 54. Nf5 {[%clk 0:00:14.1]} 54... Rf6 {[%clk 0:00:08.9]} 55.
Ke3 {[%clk 0:00:13.5]} 55... Rxf5 {[%clk 0:00:09.4]} 56. c4 {[%clk 0:00:14.3]}
56... Rf1 {[%clk 0:00:09.1]} 57. Kd3 {[%clk 0:00:14.3]} 57... Rc1 {[%clk
0:00:08.2]} 58. d5 {[%clk 0:00:13.2]} 58... cxd5 {[%clk 0:00:07]} 59. cxd5
{[%clk 0:00:14.1]} 59... Ke7 {[%clk 0:00:07.2]} 60. Kd2 {[%clk 0:00:14.5]} 60...
Rc5 {[%clk 0:00:06.5]} 61. Kd3 {[%clk 0:00:15.3]} 61... Kd6 {[%clk 0:00:06.8]}
62. b4 {[%clk 0:00:09.8]} 62... axb3 {[%clk 0:00:06.5]} 0-1

[Event "Early-Titled-Tuesday-Blitz-October-10-2023"]
[Site "Chess.com"]
[Date "2023.10.10"]
[Round "11"]
[White "DonJuanEGenaro"]
[Black "ZeGood_ZeBad_ZeUgly"]
[Result "1-0"]
[WhiteElo "1915"]
[BlackElo "2328"]
[TimeControl "180+1"]
[EndTime "10:05:40 PDT"]
[Termination "DonJuanEGenaro won by resignation"]

1. Nf3 {[%clk 0:02:54.2]} 1... Nf6 {[%clk 0:02:59.4]} 2. d4 {[%clk 0:02:53.3]}
2... d5 {[%clk 0:02:59.2]} 3. c4 {[%clk 0:02:53.1]} 3... c6 {[%clk 0:02:57.9]}
4. cxd5 {[%clk 0:02:52.3]} 4... cxd5 {[%clk 0:02:58.8]} 5. Nc3 {[%clk
0:02:52.2]} 5... Nc6 {[%clk 0:02:59]} 6. Bf4 {[%clk 0:02:52.7]} 6... e6 {[%clk
0:02:55.7]} 7. e3 {[%clk 0:02:52.8]} 7... Bd6 {[%clk 0:02:55.6]} 8. Bxd6 {[%clk
0:02:52.6]} 8... Qxd6 {[%clk 0:02:56.5]} 9. Be2 {[%clk 0:02:52]} 9... O-O {[%clk
0:02:50.7]} 10. O-O {[%clk 0:02:51.8]} 10... Bd7 {[%clk 0:02:49.5]} 11. a3
{[%clk 0:02:51]} 11... Na5 {[%clk 0:02:48.6]} 12. Ne5 {[%clk 0:02:44.8]} 12...
Rac8 {[%clk 0:02:41.8]} 13. Rc1 {[%clk 0:02:41.8]} 13... Be8 {[%clk 0:02:29.6]}
14. b4 {[%clk 0:02:41.4]} 14... Nc6 {[%clk 0:02:29.3]} 15. Nb5 {[%clk
0:02:28.9]} 15... Qb8 {[%clk 0:02:26.8]} 16. Nxc6 {[%clk 0:02:22.4]} 16... Bxc6
{[%clk 0:02:27.7]} 17. Qb3 {[%clk 0:02:20.7]} 17... Bxb5 {[%clk 0:02:24]} 18.
Bxb5 {[%clk 0:02:19.4]} 18... a6 {[%clk 0:02:24.2]} 19. Bd3 {[%clk 0:02:18.3]}
19... Qd6 {[%clk 0:02:23.4]} 20. Rc5 {[%clk 0:02:16.6]} 20... Nd7 {[%clk
0:02:20.8]} 21. Rc2 {[%clk 0:02:03.3]} 21... Rc7 {[%clk 0:01:42.7]} 22. Rfc1
{[%clk 0:01:57.9]} 22... Rfc8 {[%clk 0:01:42.3]} 23. h4 {[%clk 0:01:38]} 23...
g6 {[%clk 0:01:32.3]} 24. h5 {[%clk 0:01:36.7]} 24... f5 {[%clk 0:01:21.2]} 25.
hxg6 {[%clk 0:01:35.4]} 25... hxg6 {[%clk 0:01:22.1]} 26. a4 {[%clk 0:01:26]}
26... Nf6 {[%clk 0:01:07.1]} 27. Rc5 {[%clk 0:01:19]} 27... Ng4 {[%clk
0:00:46.9]} 28. g3 {[%clk 0:01:12]} 28... b6 {[%clk 0:00:28.5]} 29. Rxc7 {[%clk
0:01:07.1]} 29... Rxc7 {[%clk 0:00:29.4]} 30. Rxc7 {[%clk 0:01:05.2]} 30... Qxc7
{[%clk 0:00:30.3]} 31. Kg2 {[%clk 0:00:56.9]} 31... Qh7 {[%clk 0:00:26.1]} 32.
Kf3 {[%clk 0:00:39.1]} 32... Qh2 {[%clk 0:00:19.4]} 33. Qc2 {[%clk 0:00:31.9]}
33... e5 {[%clk 0:00:13.5]} 34. dxe5 {[%clk 0:00:27]} 34... Nxe5+ {[%clk
0:00:14.4]} 35. Ke2 {[%clk 0:00:26.5]} 35... Qh5+ {[%clk 0:00:14.3]} 36. Kd2
{[%clk 0:00:23]} 36... Nf3+ {[%clk 0:00:14.6]} 37. Kc3 {[%clk 0:00:22.8]} 37...
Qh8+ {[%clk 0:00:14.6]} 38. Kb3 {[%clk 0:00:22.3]} 38... Qf6 {[%clk 0:00:12.3]}
39. Qc8+ {[%clk 0:00:21.4]} 39... Kg7 {[%clk 0:00:12.2]} 40. Qc7+ {[%clk
0:00:21.1]} 40... Kh6 {[%clk 0:00:12.4]} 41. Qf4+ {[%clk 0:00:20.8]} 41... Ng5
{[%clk 0:00:11.5]} 42. Qh4+ {[%clk 0:00:20.5]} 42... Kg7 {[%clk 0:00:11.6]} 43.
f4 {[%clk 0:00:20.3]} 43... Ne4 {[%clk 0:00:07.8]} 44. Qxf6+ {[%clk 0:00:20.2]}
44... Kxf6 {[%clk 0:00:08.2]} 45. Bxe4 {[%clk 0:00:18.3]} 45... fxe4 {[%clk
0:00:07.5]} 46. g4 {[%clk 0:00:17.6]} 46... Ke6 {[%clk 0:00:06.5]} 47. Kc3
{[%clk 0:00:17.7]} 47... Kd6 {[%clk 0:00:05.8]} 48. Kd4 {[%clk 0:00:17.8]} 48...
Ke6 {[%clk 0:00:04.2]} 49. f5+ {[%clk 0:00:17.9]} 49... gxf5 {[%clk 0:00:03.7]}
50. gxf5+ {[%clk 0:00:18.1]} 50... Kxf5 {[%clk 0:00:04.2]} 51. Kxd5 {[%clk
0:00:17.8]} 51... Kf6 {[%clk 0:00:03.5]} 52. Kxe4 {[%clk 0:00:17.1]} 52... Ke6
{[%clk 0:00:04.1]} 53. Kd4 {[%clk 0:00:16.9]} 53... Kd6 {[%clk 0:00:04.7]} 54.
e4 {[%clk 0:00:17.1]} 54... Ke6 {[%clk 0:00:05.4]} 55. e5 {[%clk 0:00:17.3]}
55... a5 {[%clk 0:00:05.1]} 56. bxa5 {[%clk 0:00:16.4]} 56... bxa5 {[%clk
0:00:06]} 57. Ke4 {[%clk 0:00:15.9]} 57... Ke7 {[%clk 0:00:06]} 58. Kd5 {[%clk
0:00:16]} 58... Kd7 {[%clk 0:00:06.8]} 59. e6+ {[%clk 0:00:15.4]} 59... Ke7
{[%clk 0:00:07.4]} 60. Ke5 {[%clk 0:00:15.5]} 60... Kd8 {[%clk 0:00:08]} 61. Kd6
{[%clk 0:00:15.5]} 61... Ke8 {[%clk 0:00:07.7]} 62. e7 {[%clk 0:00:15.6]} 1-0